Cogmind - Beta 16.1 @@@ ROGUE MODE // 2026.01.21 @ 03:31:03 Player: Heni Result: Destroyed by as-67457 with Assembled Rifle Performance ------------- Evolutions (0) 0 Regions Visited (2) 400 Robots Destroyed (28) 140 Value Destroyed (542) 542 Prototype IDs (1) 20 Alien Tech Used (0) 0 Bonus (0) 0 TOTAL SCORE: 1102 Bonus ------- None Cogmind --------- Core Integrity 0/250 Matter 228/300 Energy 125/125 System Corruption 3% Temperature Cool (0) Movement Treading (160) Location -10/Mines Parts ------- > --- POWER (1) -------- Light Ion Engine > --- PROPULSION (2) --- Light Treads Wheel > --- UTILITY (2) ------ Medium Storage Unit Seismic Detector > --- WEAPON (2) ------- Assault Rifle Heavy Assault Rifle > --- INVENTORY (10) --- Light Nuclear Core Wheel Small Storage Unit High-capacity Matter Pod (200) Light Armor Plating Splice Drone Bay (6/6) Assault Rifle Assault Rifle Assault Rifle Peak State ------------ > --- POWER ------------ Light Ion Engine > --- PROPULSION ------- Light Treads Light Treads > --- UTILITY ---------- Medium Storage Unit Splice Drone Bay > --- WEAPON ----------- Assault Rifle Assault Rifle > --- INVENTORY -------- Light Nuclear Core Aluminum Leg Aluminum Leg Wheel Small Storage Unit High-capacity Matter Pod Signal Interpreter Assault Rifle Assault Rifle Assault Rifle [Rating: 14] Favorites ----------- Power Ion Engine Engine Ion Engine Propulsion Light Treads Treads Light Treads Wheel Wheel Utility Seismic Detector Device Seismic Detector Storage Medium Storage Unit Processor Signal Interpreter Weapon Assault Rifle Energy Gun Medium Laser Ballistic Gun Assault Rifle Build | -11 -10 -10 ------- Run | Yrd Mat Min Slots Evolved . | . . . Power . | . . . Propulsion . | . . . Utility . | . . . Weapon . | . . . Parts Attached 16 | 7 4 5 Power 2 | 1 1 . Engine 2 | 1 1 . Core . | . . . Reactor . | . . . Propulsion 4 | 2 . 2 Treads 3 | 2 . 1 Leg . | . . . Wheel 1 | . . 1 Hover . | . . . Flight . | . . . Utility 5 | 2 1 2 Device 2 | 1 . 1 Storage 2 | 1 1 . Processor 1 | . . 1 Hackware . | . . . Protection . | . . . Artifact . | . . . Weapon 5 | 2 2 1 Energy Gun 1 | 1 . . Energy Cannon . | . . . Ballistic Gun 4 | 1 2 1 Ballistic Cannon . | . . . Launcher . | . . . Special Weapon . | . . . Impact Weapon . | . . . Slashing Weapon . | . . . Piercing Weapon . | . . . Special Melee Weapon . | . . . Unidentified Prototypes 1 | . . 1 Parts Lost 3 | . . 3 Power . | . . . Propulsion 2 | . . 2 Utility . | . . . Weapon 1 | . . 1 Highest Loss Streak 1 | . . 1 To Critical Strikes . | . . . Average Backups 8 | 4 8 9 Power 1 | . 1 1 Propulsion 2 | 2 3 1 Utility 2 | . 2 3 Weapon 2 | . 2 3 Tool/Special . | . . . Unused Backups 13 | 1 3 9 Power 2 | . 1 1 Propulsion 4 | 1 . 3 Utility 2 | . . 2 Weapon 5 | . 2 3 Tool/Special . | . . . Average Slot Usage (%) 99 | . 99 99 Engine 14 | . 14 14 Treads 27 | . 28 26 Device 13 | . 14 13 Storage 14 | . 14 14 Energy Gun 8 | . 11 . Ballistic Gun 19 | . 16 28 Peak Build Rating 14 | 7 8 14 Average Rating 7 | 4 7 7 On Entrance 5 | . 7 8 Avg Prop Armor Cover (%) 11 | . . 11 Naked Turns . | . . . Heaviest Build 20 | 15 20 19 Greatest Support 40 | 40 40 40 Greatest Overweight (x) 1 | . . 1 Average Overweight (x) . | . . . Largest Inventory Capacity 10 | 8 10 10 Average Capacity 9 | 6 9 10 Most Carried 10 | 5 10 10 Average Carried 8 | 4 8 9 Final Capacity 10 | 8 10 10 Final Carried 10 | 5 10 9 Class Distribution -------------------- 97% | Mutant Dominant Class ---------------- Mutant | -10/Materials Mutant | -10/Mines Resources | -11 -10 -10 ----------- Run | Yrd Mat Min Matter Collected 883 | 296 380 207 Remotely . | . . . Salvage Created 894 | 147 483 264 Parts 57 | 13 30 14 Haulers Intercepted 2 | . 2 . Recyclers Shooed . | . . . Parts Field Recycled . | . . . Retrieved Matter . | . . . Parts Self-Destructed . | . . . Prevented . | . . . Parts Restored . | . . . Kills | -11 -10 -10 ------- Run | Yrd Mat Min Combat Hostiles Destroyed 22 | . 10 12 Guns 22 | . 10 12 Classes Destroyed 9 | 2 5 2 Worker 2 | . 1 1 Builder 1 | . 1 . Tunneler 6 | 5 1 . Hauler 2 | . 2 . Recycler 1 | 1 . . Swarmer 6 | . 3 3 Grunt 9 | . 7 2 Sentry 1 | . . 1 Assembled 6 | . . 6 Best Kill Streak 7 | 3 7 4 Combat Bots Only 3 | . 3 3 Max Kills in Single Turn 2 | 2 2 2 Gunslinging 1 | . 1 1 Exploded . | . . . Melee . | . . . Uniques/NPCs Destroyed . | . . . Combat | -11 -10 -10 -------- Run | Yrd Mat Min Hostile Shots Fired 104 | . 42 62 Missed 23 | . 14 9 Hits 81 | . 28 53 Melee 4 | . . 4 Projectile 77 | . 28 49 Critical Strikes 3 | . 1 2 Part Disruptions 1 | . . 1 Damage Taken 1036 | . 312 724 Core 254 | . 48 206 Absorbed by Shields . | . . . Regen/Repaired (Parts) 69 | . 69 . Core Remaining (%) 100 | 100 . . Volleys Fired 84 | 12 35 37 Largest 2 | 2 2 2 Hottest 70 | 70 70 43 Shots Fired 161 | 18 74 69 Gun 161 | 18 74 69 Cannon . | . . . Launcher . | . . . Special . | . . . Kinetic 119 | 12 38 69 Thermal 42 | 6 36 . Explosive . | . . . Electromagnetic . | . . . Robot Hit Streak 21 | 9 21 12 Robot Miss Streak 4 | 1 4 2 Penetration Max . | . . . Secondary Targets 3 | . 1 2 Max Gunslinging Chain 1 | . 1 1 Shots Hit Robots 111 | 15 48 48 Core Hits 54 | 7 25 22 Critical Kills 1 | . . 1 Critical Parts Destroyed . | . . . Critical Strikes 6 | . 5 1 Burn 5 | . 5 . Destroy 1 | . . 1 Melee Attacks . | . . . Impact . | . . . Slashing . | . . . Piercing . | . . . Sneak Attacks . | . . . Combat Hostiles . | . . . Follow-up Attacks . | . . . Damage Inflicted 1469 | 199 638 632 Guns 1463 | 199 632 632 Cannons . | . . . Explosions . | . . . Melee . | . . . Ramming 6 | . 6 . Kinetic 1091 | 124 335 632 Thermal 372 | 75 297 . Explosive . | . . . Electromagnetic . | . . . Impact . | . . . Slashing . | . . . Piercing . | . . . Highest Corruption 3 | . 3 3 Average Corruption 2 | . 2 3 Corruption Purged . | . . . Corruption Blocked . | . . . Effects 18 | . 9 9 Message Errors 3 | . 2 1 Matter Fused 4 | . 1 3 Heat Flow Errors 4 | . 1 3 Data Loss (minor) 3 | . 1 2 Misfires 4 | . 4 . Overload Shots . | . . . Overflow Damage . | . . . Projectiles . | . . . Explosions . | . . . Melee . | . . . Knockbacks . | . . . Impact . | . . . Kinetic . | . . . Secondary . | . . . Self-Inflicted Damage . | . . . Shots . | . . . Rammed 2 | . 2 . Targets Rammed 3 | . 3 . Kicked . | . . . Crushed 1 | . 1 . Highest Temperature 237 | 18 132 237 Average Temperature 45 | 9 39 77 Received Heat Transfer 335 | . 153 182 Siege Activations . | . . . Martial Activations . | . . . Shielding Activations . | . . . Robots Disrupted . | . . . Combat Hostiles . | . . . Robots Corrupted . | . . . Combat Hostiles . | . . . Parts Fried . | . . . Impact Corruptions . | . . . Robots Melted . | . . . Combat Hostiles . | . . . Parts Melted 3 | . 2 1 Heat Transferred 1480 | 222 1258 . Parts Sabotaged . | . . . Parts Stolen . | . . . Parts Stripped . | . . . Power Chain Reactions . | . . . Alert | -11 -10 -10 ------- Run | Yrd Mat Min Maximum Alert Level . | . . . Low Security (%) 100 | 100 100 100 Level 1 . | . . . Level 2 . | . . . Level 3 . | . . . Level 4 . | . . . Level 5 . | . . . High Security . | . . . Max Security . | . . . Peak Influence 178 | 10 178 75 Initial . | . . . Average 45 | 1 60 22 Influence Increases 549 | 30 343 176 Destroy 0b10 Robot/C 320 | . 200 120 Destroy 0b10 Robot/NC 60 | 30 25 5 Destroy Leader 64 | . 44 20 Successful Hack 43 | . 43 . Disable Machine 30 | . . 30 Destroy Structure 2 | . 1 1 Lose Combat Pursuer 30 | . 30 . Influence Decreases 549 | 30 341 178 Entered New Map 2 | . . 2 Time Decay 467 | 30 271 166 Lost Part 10 | . . 10 Purge Threat 70 | . 70 . Squads Dispatched . | . . . Investigation . | . . . Extermination . | . . . Reinforcement . | . . . Assault . | . . . Garrison . | . . . Intercept . | . . . Searches Triggered . | . . . Construction Impeded . | . . . Haulers Reinforced . | . . . Active Scanning Responses . | . . . Cargo Convoy Interrupts . | . . . Stealth | -11 -10 -10 --------- Run | Yrd Mat Min Distress Signals 2 | . 2 . Communications Jammed . | . . . Distress Signals . | . . . Times Spotted 37 | . 23 14 Peak Tracking Total 5 | . 5 3 Tactical Retreats 2 | . 2 . Traps | -11 -10 -10 ------- Run | Yrd Mat Min Traps Triggered 3 | . 3 . Indirectly . | . . . Trap Hack Attempts . | . . . Triggered . | . . . Disarmed . | . . . Reprogrammed . | . . . Reused . | . . . Traps Extracted . | . . . Installed . | . . . Triggered . | . . . Machines | -11 -10 -10 ---------- Run | Yrd Mat Min Machines Disabled 2 | . . 2 Max in Single Turn 1 | . . 1 Machines Repaired . | . . . Machines Dismantled . | . . . Machines Sabotaged . | . . . Overloaded Fab Kills . | . . . Hacking | -11 -10 -10 --------- Run | Yrd Mat Min Machines Accessed 10 | . 9 1 Terminals 8 | . 8 . Fabricators . | . . . Repair Stations 1 | . 1 . Recycling Units . | . . . Scanalyzers . | . . . Garrison Access . | . . . Total Hacks 20 | . 19 1 Successful 11 | . 10 1 Failed 9 | . 9 . Catastrophic 2 | . 2 . Database Lockouts . | . . . Manual 14 | . 14 . Terminals 17 | . 17 . Fabricators . | . . . Repair Stations 2 | . 2 . Recycling Units . | . . . Scanalyzers . | . . . Garrison Access . | . . . Terminal Hacks 3 | . 2 1 Open Door 1 | . . 1 Unreport Threat 1 | . 1 . Zone Layout 1 | . 1 . Fabricator Hacks . | . . . Repair Station Hacks 2 | . 2 . Scan Component 1 | . 1 . Repair 1 | . 1 . Recycling Unit Hacks . | . . . Scanalyzer . | . . . Garrison Access Hacks . | . . . Unauthorized Hacks 6 | . 6 . Terminals 6 | . 6 . Operators 1 | . 1 . Skim 5 | . 5 . Fabricators . | . . . Repair Stations . | . . . Recycling Units . | . . . Scanalyzers . | . . . Garrison Access . | . . . Data Cores Recovered . | . . . Used . | . . . Hacking Detections 9 | . 9 . Full Trace Events . | . . . Feedback Events . | . . . Feedback Blocked . | . . . Robot Schematics Acquired . | . . . Robots Built . | . . . Authchips . | . . . Time . | . . . Total Robot Build Rating . | . . . Part Schematics Acquired . | . . . Parts Built . | . . . Authchips . | . . . Time . | . . . Total Part Build Rating . | . . . Part Studies Acquired . | . . . Parts Repaired 1 | . 1 . Time 26 | . 26 . Parts Recycled . | . . . Recycled Matter . | . . . Retrieved Matter . | . . . Retrieved Components . | . . . Parts Scanalyzed . | . . . Part Schematics Acquired . | . . . Parts Damaged . | . . . Bothacking | -11 -10 -10 ------------ Run | Yrd Mat Min Used RIF Installer . | . . . Robots Hacked . | . . . Non-combat . | . . . Combat . | . . . Robot Hacks Applied . | . . . Relay Couplers Released . | . . . Fabnet Peak Effective % . | . . . Robots Rewired . | . . . Allies Hacked . | . . . Hacks Repelled . | . . . Allies | -11 -10 -10 -------- Run | Yrd Mat Min Total Allies . | . . . Largest Group . | . . . Highest-Rated Group . | . . . Highest-Rated Ally . | . . . Total Orders . | . . . Ally Attacks . | . . . Total Damage . | . . . Kills . | . . . Allies Corrupted . | . . . Allies Melted . | . . . Intel | -11 -10 -10 ------- Run | Yrd Mat Min Active Infowar (turns) 2024 | 1 1478 545 Seismic 2024 | 1 1478 545 Robot Analysis Total . | . . . Derelict Logs Recovered . | . . . Drone Launches . | . . . Drone Recoveries . | . . . Exploration | -11 -10 -10 ------------- Run | Yrd Mat Min Turns Passed 2258 | 221 1478 559 Spaces Moved 1130 | 109 776 245 Core 4 | 4 . . Treads 1120 | 105 776 239 Legs . | . . . Wheels 6 | . . 6 Hover . | . . . Flight . | . . . Fastest Speed 50 | 50 160 95 Average Speed 159 | 155 160 158 Slowest Speed 160 | 160 160 160 Overloaded Moves . | . . . Propulsion Burnouts . | . . . Robots Hopped . | . . . Potential Cave-ins . | . . . Cave-ins Triggered . | . . . Exploration Rate (%) 54 | 5 96 63 Regions Visited 2 Branch Regions 1 Pre-discovered Areas . | . . . Known Exits Taken . | . . . Unknown Exits Taken 2 | 1 1 . Scrap Searched . | . . . Spaces Dug . | . . . Terrain Destroyed . | . . . Melee . | . . . Projectile . | . . . AOE . | . . . Terrain Rammed . | . . . Walls Destroyed . | . . . Machines Disabled . | . . . Actions | -11 -10 -10 --------- Run | Yrd Mat Min Total 1430 | 141 943 346 Wait 167 | 5 110 52 Move 1128 | 108 775 245 Hop . | . . . Pick Up 17 | 7 8 2 Fast Attach 15 | 7 4 4 Attach 2 | . 1 1 Detach 1 | . . 1 Swap 2 | . 1 1 Drop 11 | 2 6 3 Fire 84 | 12 35 37 Melee . | . . . Ram . | . . . Kick . | . . . Crush 3 | . 3 . Escape Stasis . | . . . Rewire . | . . . Trap . | . . . Miscellaneous . | . . . Route ------- -11/Scrapyard -10/Materials (discovered 4 exits: [*Mat x3] / *Min) -10/Mines History --------- Turn | Location | Event 7 | -11/Scrapyard | Discovered new exit (range 13) 222 | -11/Scrapyard | Entered Materials 318 | -10/Materials | Build established: Mutant 700 | -10/Materials | Discovered new exit (range 8) 822 | -10/Materials | Discovered new exit (range 6) 1207 | -10/Materials | Repaired Assault Rifle 1211 | -10/Materials | Discovered new exit (range 3) 1612 | -10/Materials | Discovered new exit (range 14) 1700 | -10/Materials | Entered Mines 1789 | -10/Mines | Found the Drone Emporium 1795 | -10/Mines | Found Prototype Device 1795 | -10/Mines | Identified Splice Drone Bay 1936 | -10/Mines | Joined a pair of Derelicts in attacking an 0b10 outpost 2051 | -10/Mines | Assembled infested the area 2173 | -10/Mines | Core integrity fell below 50% 2210 | -10/Mines | Core integrity fell below 20% 2259 | -10/Mines | Destroyed by as-67457 with Assembled Rifle Last Messages --------------- 02081_ K-01 Serf cleans the Seismic Survey Station. 02142_ System corrupted: Heat flow error (+120). 02176_ as-22597 destroyed. 02195_ Acquired 12 matter. 02197_ System corrupted: Matter fused (-7). 02197_ Acquired 4 matter. 02197_ as-40566 destroyed. 02201_ Lgt. Treads destroyed. 02206_ Destroyed Asb. Hover Unit. 02209_ as-59659 destroyed. 02209_ Switching to secondary target: as-30577. 02215_ as-30577 destroyed. 02218_ System corrupted: Matter fused (-9). 02220_ Acquired Wheel. 02235_ Assault Rifle destroyed. 02236_ as-92464 destroyed. 02238_ Identified Hvy. Assault Rifle. 02242_ as-13035 destroyed. 02244_ Acquired 14 matter. 02246_ Acquired 29 matter. Map ----- +----------------------------------------------------+ | ????????????????## #????????????????? | | ????????????????# # ##????????????????? | | ????????????????# ##### ####?????????????????? | | ????????????????# ##???# #????????????????????? | | ????????????????## ##???# #????????????????????? | | ????????????????## ##??# #??###???????????????? | | ???????????????## ##?# ### ##??????????????? | | ??????????????## ### #####??????????? | | ??????????????# #??????????? | | ??????????????# ## #?????????? | | ??????????????## ## ##???????????????? | | ???????????????#### ##?###????????????????? | | ??????????????????## ##????????????????????? | | ???????????????????### ##???????????????????? | | ?????????????????????## #???????????????????? | | ??????????????????????## #???????????????????? | | ???????????????#???????## #???????????????????? | | ???????????????# ??????## #???????????????????? | | ???????????????# ??????## ##??????????????????? | | ????????????????# ??????# ##?????????????????? | | ????????????????# ?????#*= ##????????????????? | | ?????????????????# ##### ! ##???????????????? | | ??????????????????# % = ##??????????????? | | ??????????????????#% %! % ##?????????????? | | ??????????????????# ###a #?????????????? | | ??????????????????# ???#@ #?????????????? | | ????????????????? ????## ##?????????????? | | ????????????????##???????##########??????????????? | | ?????????????????????????????????????????????????? | | ?????????????????????????????????????????????????? | | ?????????????????????????????????????????????????? | | ?????????????????????????????????????????????????? | | ?????????????????????????????????????????????????? | | ?????????????????????????????????????????????????? | | ?????????????????????????????????????????????????? | | ?????????????????????????????????????????????????? | | ?????????????????????????????????????????????????? | | ?????????????????????????????????????????????????? | | | | | | | | | | | | | | | | | | | | | | | | | +----------------------------------------------------+ Best States ------------- Heat Dissipation 25 Energy Generation 10 Energy Capacity 250 Matter Stores 300 Matter Capacity 300 Sight Range 16 Terrain Scan Density 10 Evasion (%) 41 Recoil Reduction 2 Item Schematics ----------------- None Robot Schematics ------------------ None Fabricated ------------ Nothing Repaired ---------- Assault Rifle | 31% | -10/Materials Studied --------- None Alien Tech Used ----------------- None Achievements -------------- None Challenges ------------ None Game ------ Seed FieldthrustScatterTracker Manual? 0 Play Time 00:13:52 Cumulative 670.6 hours Start 2026.01.21 @ 03:11:25 End 2026.01.21 @ 03:31:03 Sessions 1 Manual Loads 0 Difficulty Rogue Special Mode None Game No. 588 Rogue 373 Adventurer 112 Explorer 103 Win Type - Total 43 Types 26/0/9/3/0/0/4/1/0/0 Lore% 68 Gallery% 77 Achievement% 51 Wizard Run 0 Options --------- Layout 0 ASCII 1 Keyboard 1 Movement Vi Keybinds 1 Fullscreen 2 Font 18/SmallcapsGlow Map View 66x52 Zoom Use 0% Tactical HUD 1 Map Filters NONE Filters NONE Steam 0 RUN: 2c03dd05-bf9e-4dc4-86e5-d237aeb7ab95